[Event "FIDE WSTC Open 50 2025"]
[Site "Prague"]
[Date "2025.02.19"]
[Round "3.14"]
[White "Kotsur, Pavel"]
[Black "Schulenburg, Bernd"]
[Result "1-0"]
[Annotator "TA"]
[ECO "A30"]
[WhiteElo "2478"]
[BlackElo "2144"]
[PlyCount "55"]
[EventDate "2025.02.17"]
[EventType "team-tourn"]
[EventCountry "CZE"]
[SourceTitle "playchess.com"]
[Source "ChessBase"]
[SourceQuality "1"]
[TimeControl "40/5400+30:1800+30"]

{[%evp 11,55,24,61,63,70,63,71,57,74,64,68,44,46,54,100,59,62,52,50,21,45,45,66,58,55,66,82,62,64,80,80,71,65,10,33,12,87,93,108,85,356,339,881,894,5381,3291]} 1. c4 {[%emt 0:00:06]} c5 {[%emt 0:00:15]} 2. Nf3 {[%emt 0:00:15]} Nf6 {[%emt 0:00:25]} 3. Nc3 {[%emt 0:00:09]} b6 {[%emt 0:01:21]} 4. d4 {[%emt 0:00:20]} cxd4 {[%emt 0:00:08]} 5. Nxd4 {[%emt 0:00:03]} Bb7 {[%emt 0:00:17]} 6. f3 {[%emt 0:00:07]} g6 {[%emt 0:04:40]} 7. e4 {[%emt 0:00:50] A31: Symmetrical English: 2 Nf3 Nf6 3 d4.} d6 {[%emt 0:01:51]} 8. Be3 {[%emt 0:01:54]} Bg7 {[%emt 0:00:17]} 9. Qd2 {[%emt 0:00:17] White is better.} Nc6 {[%emt 0:02:02]} 10. Nxc6 {[%emt 0:06:53]} Bxc6 {[%emt 0:00:08]} 11. Bh6 $146 {[%emt 0:00:09]} (11. Rc1 O-O 12. Bh6 e6 13. h4 d5 14. Bxg7 Kxg7 15. cxd5 exd5 16. Ne2 Bb5 17. e5 {½-½ Kauko,P (2007)-Sorvari,J (2070) FIN-chT1A 1617 2016 (1.4)}) 11... Bxh6 {[%emt 0:14:08]} 12. Qxh6 {[%emt 0:00:05]} e5 {[%emt 0:00:15]} (12... Qc8 $14) 13. O-O-O {[%emt 0:05:19]} Qe7 {[%emt 0:01:16]} 14. Kb1 {[%emt 0:09:05]} O-O-O $1 {[%emt 0:15:38]} 15. Be2 {[%emt 0:08:57]} Kb8 {[%emt 0:06:15]} 16. Rd2 {[%emt 0:02:44]} Rd7 {[%emt 0:10:04]} 17. Rhd1 {[%emt 0:07:44]} Ne8 {[%emt 0:01:28]} 18. Nd5 {[%emt 0:07:14]} Qd8 {[%emt 0:10:38]} 19. g3 {[%emt 0:03:16] White is much more active.} Bxd5 {[%emt 0:06:19]} 20. cxd5 {[%emt 0:01:04]} Rc7 {[%emt 0:01:32] Black is weak on the light squares} 21. Bb5 {[%emt 0:01:58]} f5 {[%emt 0:00:10]} 22. f4 {[%emt 0:10:11]} (22. Qe3 $14) 22... Nf6 {[%emt 0:02:48]} 23. exf5 {[%emt 0:01:51]} gxf5 {[%emt 0:00:55]} (23... Ng4 $11 24. Qh3 Ne3) 24. fxe5 $16 {[%emt 0:00:45][%cal Bf4e5,Be5d6][%mdl 32]} Ne4 {[%emt 0:00:03]} 25. exd6 {[%emt 0:03:45]} Nxd2+ $4 {[%emt 0:01:39][%mdl 8192] [#]} (25... Qxd6 $16 {was necessary.} 26. Qxd6 Nxd6) 26. Rxd2 $18 {[%emt 0:00:14]} Rc5 {[%emt 0:00:07]} (26... Rd7 27. Bxd7 Qxd7) 27. Bc6 {[%emt 0:00:19]} Qf8 {[%emt 0:04:25] Wards off Qg7} 28. Qf4 {[%emt 0:01:21] Weighted Error Value: White=0.14 (very precise) /Black=0.71  Loses game:     	---       	Black=1      Mistake:       	White=1     	Black=3      Inaccurate:     	White=2     	Black=1      OK:         	White=5     	Black=5      Best:        	White=1     	---        Strong:       	---       	Black=1} 1-0

[Event "FIDE WSTC Open 50 2025"]
[Site "Prague"]
[Date "2025.02.19"]
[Round "3.15"]
[White "Kuna, Ralf-Michael"]
[Black "Tikzhanov, Yerlan"]
[Result "1-0"]
[Annotator "RC"]
[ECO "C01"]
[WhiteElo "2072"]
[BlackElo "2323"]
[PlyCount "81"]
[EventDate "2025.02.17"]
[EventType "team-tourn"]
[EventCountry "CZE"]
[SourceTitle "playchess.com"]
[Source "ChessBase"]
[SourceQuality "1"]
[TimeControl "40/5400+30:1800+30"]

1. e4 {[%emt 0:00:06]} e6 {[%emt 0:00:12]} 2. d4 {[%emt 0:00:13]} d5 {[%emt 0:00:06]} 3. exd5 {[%emt 0:00:39]} exd5 {[%emt 0:00:07]} 4. Nf3 {[%emt 0:00:14]} Nf6 {[%emt 0:00:09]} 5. Bd3 {[%emt 0:00:21]} Bd6 {[%emt 0:00:07]} 6. Qe2+ {[%emt 0:01:25]} Qe7 {[%emt 0:02:39]} 7. Qxe7+ {[%emt 0:00:30]} Kxe7 {[%emt 0:00:10]} 8. O-O {[%emt 0:00:39]} Re8 {[%emt 0:00:25]} 9. Nc3 {[%emt 0:02:53]} c6 {[%emt 0:02:05]} 10. Bg5 {[%emt 0:02:32]} h6 {[%emt 0:00:56]} 11. Rfe1+ {[%emt 0:06:03]} Be6 {[%emt 0:00:24]} 12. Bh4 {[%emt 0:01:20]} Nbd7 {[%emt 0:00:49]} 13. Nd1 {[%emt 0:04:39]} g5 {[%emt 0:12:19]} 14. Bg3 {[%emt 0:05:08]} Nh5 {[%emt 0:02:15]} 15. Ne3 {[%emt 0:02:15]} Nxg3 {[%emt 0:00:48]} 16. hxg3 {[%emt 0:00:12]} Kf6 {[%emt 0:00:34]} 17. g4 {[%emt 0:01:22]} Bf4 {[%emt 0:01:10]} 18. Nh2 {[%emt 0:02:16]} Rh8 {[%emt 0:04:46]} 19. g3 {[%emt 0:02:49]} Bc7 {[%emt 0:00:28]} 20. Kg2 {[%emt 0:04:40]} c5 {[%emt 0:02:50]} 21. c3 {[%emt 0:03:01]} cxd4 {[%emt 0:01:27]} 22. cxd4 {[%emt 0:00:01]} Bb6 {[%emt 0:00:13]} 23. Nf3 {[%emt 0:02:10]} h5 {[%emt 0:00:54]} 24. Bf5 {[%emt 0:00:44]} Nb8 {[%emt 0:04:39]} 25. Bxe6 {[%emt 0:02:52]} fxe6 {[%emt 0:01:35]} 26. gxh5 {[%emt 0:02:25]} Rxh5 {[%emt 0:01:47]} 27. Ng4+ {[%emt 0:01:15]} Ke7 {[%emt 0:00:34]} 28. Re2 {[%emt 0:09:40]} Nc6 {[%emt 0:06:54]} 29. Rae1 {[%emt 0:00:42]} Nxd4 {[%emt 0:02:08]} 30. Nxd4 {[%emt 0:01:21]} Bxd4 {[%emt 0:00:07]} 31. Rxe6+ {[%emt 0:00:04]} Kd7 {[%emt 0:00:11]} 32. Re7+ {[%emt 0:02:55]} Kc6 {[%emt 0:00:38]} 33. R1e6+ {[%emt 0:00:19]} Kb5 {[%emt 0:00:19]} 34. Rxb7+ {[%emt 0:00:44]} Bb6 {[%emt 0:00:10]} 35. Rd7 {[%emt 0:05:33]} d4 {[%emt 0:00:59]} 36. Rd5+ {[%emt 0:10:06]} Kc4 {[%emt 0:01:51]} 37. Red6 {[%emt 0:00:34]} Kd3 {[%emt 0:00:21]} 38. a4 {[%emt 0:01:18]} Re8 {[%emt 0:04:45]} 39. Nf6 {[%emt 0:01:04]} Rhh8 {[%emt 0:01:29]} 40. Nxe8 {[%emt 0:00:18]} Rxe8 {[%emt 0:00:06]} 41. a5 {[%emt 0:30:08]} 1-0

[Event "FIDE WSTC Open 50 2025"]
[Site "Prague"]
[Date "2025.02.19"]
[Round "3.16"]
[White "Min, Valeriy"]
[Black "Haentsch, Ralf"]
[Result "1/2-1/2"]
[Annotator "RC"]
[ECO "D38"]
[WhiteElo "2273"]
[BlackElo "2087"]
[PlyCount "97"]
[EventDate "2025.02.17"]
[EventType "team-tourn"]
[EventCountry "CZE"]
[SourceTitle "playchess.com"]
[Source "ChessBase"]
[SourceQuality "1"]
[TimeControl "40/5400+30:1800+30"]

1. Nf3 {[%emt 0:00:02]} d5 {[%emt 0:00:11]} 2. d4 {[%emt 0:00:22]} Nf6 {[%emt 0:00:34]} 3. c4 {[%emt 0:00:13]} e6 {[%emt 0:00:23]} 4. Nc3 {[%emt 0:01:17]} Bb4 {[%emt 0:01:22]} 5. Bg5 {[%emt 0:04:24]} h6 {[%emt 0:01:44]} 6. Bxf6 {[%emt 0:00:59]} Bxc3+ {[%emt 0:03:14]} 7. bxc3 {[%emt 0:00:12]} Qxf6 {[%emt 0:00:11]} 8. Qb3 {[%emt 0:08:32]} c6 {[%emt 0:04:15]} 9. e3 {[%emt 0:01:35]} O-O {[%emt 0:01:15]} 10. Ne5 {[%emt 0:01:35]} Rd8 {[%emt 0:05:59]} 11. Be2 {[%emt 0:11:30]} Nd7 {[%emt 0:02:10]} 12. Nxd7 {[%emt 0:00:27]} Rxd7 {[%emt 0:00:09]} 13. O-O {[%emt 0:03:47]} Rc7 {[%emt 0:10:00]} 14. f4 {[%emt 0:05:26]} b6 {[%emt 0:09:38]} 15. Rae1 {[%emt 0:10:43]} Ba6 {[%emt 0:11:54]} 16. Qa4 {[%emt 0:08:47]} Bxc4 {[%emt 0:02:47]} 17. Bxc4 {[%emt 0:00:24]} dxc4 {[%emt 0:00:04]} 18. Qxc4 {[%emt 0:00:24]} Qe7 {[%emt 0:08:22]} 19. e4 {[%emt 0:05:34]} Rd8 {[%emt 0:02:48]} 20. Qa4 {[%emt 0:05:31]} Qd7 {[%emt 0:11:31]} 21. Rd1 {[%emt 0:02:47]} c5 {[%emt 0:03:08]} 22. Qb3 {[%emt 0:00:26]} cxd4 {[%emt 0:03:46]} 23. cxd4 {[%emt 0:00:23]} Qc6 {[%emt 0:04:08]} 24. Qe3 {[%emt 0:05:31]} Qa4 {[%emt 0:01:19]} 25. f5 {[%emt 0:02:13]} Qxa2 {[%emt 0:04:52]} 26. Rd2 {[%emt 0:07:52]} Rc2 {[%emt 0:00:49]} 27. Rxc2 {[%emt 0:00:22]} Qxc2 {[%emt 0:00:01]} 28. fxe6 {[%emt 0:00:26]} fxe6 {[%emt 0:00:44]} 29. Rc1 {[%emt 0:01:06]} Qa4 {[%emt 0:00:13]} 30. d5 {[%emt 0:00:21]} exd5 {[%emt 0:02:11]} 31. exd5 {[%emt 0:00:11]} Qd7 {[%emt 0:00:41]} 32. Rd1 {[%emt 0:00:52]} Qd6 {[%emt 0:00:52]} 33. Qb3 {[%emt 0:00:48]} a5 {[%emt 0:01:23]} 34. h3 {[%emt 0:00:47]} Qc5+ {[%emt 0:00:42]} 35. Kh1 {[%emt 0:00:31]} Rd6 {[%emt 0:00:17]} 36. Rb1 {[%emt 0:02:35]} Qxd5 {[%emt 0:01:33]} 37. Qxd5+ {[%emt 0:00:09]} Rxd5 {[%emt 0:00:01]} 38. Rxb6 {[%emt 0:00:05]} h5 {[%emt 0:02:03]} 39. Ra6 {[%emt 0:01:35]} Kf7 {[%emt 0:00:47]} 40. Kh2 {[%emt 0:00:12]} h4 {[%emt 0:01:36]} 41. Kg1 {[%emt 0:30:44]} g5 {[%emt 0:30:44]} 42. Kf2 {[%emt 0:06:28]} Ke7 {[%emt 0:00:36]} 43. g3 {[%emt 0:00:00]} hxg3+ {[%emt 0:00:00]} 44. Kxg3 {[%emt 0:00:00]} Kd7 {[%emt 0:00:00]} 45. Kf3 {[%emt 0:00:00]} Kc7 {[%emt 0:00:00]} 46. Ke4 {[%emt 0:00:00]} Rb5 {[%emt 0:00:00]} 47. Kd4 {[%emt 0:00:00]} Kb7 {[%emt 0:00:00]} 48. Rg6 {[%emt 0:00:00]} Kc7 {[%emt 0:00:00]} 49. Ra6 {[%emt 0:00:00]} 1/2-1/2

[Event "FIDE WSTC Open 50 2025"]
[Site "Prague"]
[Date "2025.02.19"]
[Round "3.17"]
[White "Ftacnik, Lubomir"]
[Black "Muir, Andrew J"]
[Result "1-0"]
[Annotator "TA"]
[ECO "E04"]
[WhiteElo "2438"]
[BlackElo "2166"]
[PlyCount "91"]
[EventDate "2025.02.17"]
[EventType "team-tourn"]
[EventCountry "CZE"]
[SourceTitle "playchess.com"]
[Source "ChessBase"]
[SourceQuality "1"]
[TimeControl "40/5400+30:1800+30"]

{[%evp 10,91,20,0,4,4,1,8,23,20,8,14,24,21,22,34,29,15,11,-86,-39,-36,-32,-28,-26,-27,13,6,54,17,82,82,68,71,73,69,62,66,103,103,89,92,126,138,243,152,258,264,372,373,382,345,383,375,374,352,362,329,377,375,432,452,473,473,560,555,522,528,547,526,768,767,956,935,29972,29971,29977,6296,6211,6203,29976,6183,6170,6123]} 1. c4 {[%emt 0:00:08]} e6 {[%emt 0:00:15]} 2. Nf3 {[%emt 0:00:24]} d5 {[%emt 0:00:26]} 3. d4 {[%emt 0:00:27]} Nf6 {[%emt 0:00:24]} 4. g3 {[%emt 0:00:21]} dxc4 {[%emt 0:00:58]} 5. Bg2 {[%emt 0:00:14]} a6 {[%emt 0:00:18]} 6. Ne5 {[%emt 0:01:02][%cal Oe1g1]} Bb4+ {[%emt 0:00:42] 6...Bb4+ scores better than 6...c5. E04: Open Catalan: 5 Nf3.} 7. Nc3 {[%emt 0:01:09]} Nd5 {[%emt 0:00:16]} 8. O-O {[%emt 0:01:06]} Nxc3 {[%emt 0:04:12] The position is equal.} 9. bxc3 {[%emt 0:00:03]} Bxc3 {[%emt 0:00:12]} 10. Rb1 {[%emt 0:00:09]} Qxd4 {[%emt 0:12:47]} 11. Qa4+ {[%emt 0:00:57]} b5 {[%emt 0:15:17]} 12. Qa3 {[%emt 0:00:55]} Qxe5 {[%emt 0:15:32] A sharp opening} 13. Bf4 {[%emt 0:00:26]} Qf6 {[%emt 0:03:54]} (13... Qxe2 $2 14. Qxc3 (14. Bxa8 Bf6 $14) 14... O-O 15. Bxa8 $18) 14. Bxa8 $146 {[%emt 0:16:35]} (14. Bxc7 $1 $11 {was the only way to keep the balance.} Be5 (14... b4 15. Rxb4 Bxb4 16. Qxb4 $11) 15. Bxe5 (15. Bxa8 $2 Bxc7 16. Bg2 Qe7 $19) 15... Qxe5 16. Bxa8) ({Predecessor:} 14. Bxc7 b4 15. Rxb4 Bxb4 16. Qxb4 a5 17. Qxc4 Ra6 18. Bxb8 O-O 19. Rc1 Rb6 20. Bc7 {0-1 Iturrizaga Bonelli,E (2617)-Caruana,F (2782) Aimchess Rapid Div 1 W 2023 (1.2)}) 14... Be5 {[%emt 0:06:18]} (14... e5 $1 $17 {[%cal Re5f4]} 15. Qxc3 exf4) 15. Bxe5 $15 {[%emt 0:18:56]} Qxe5 {[%emt 0:00:06]} 16. Rfd1 {[%emt 0:01:19] Against Qd6} c5 {[%emt 0:03:08]} (16... Qxe2 $6 17. Qc5 $14) 17. Qa5 $1 {[%emt 0:02:33][%csl Gd1][%cal Ra5d8] Repels Qc7} O-O {[%emt 0:00:33][%cal Oc8d7]} (17... Qxe2 18. Qd8#) 18. Rd8 $40 {[%emt 0:04:14][%mdl 128] Threatening mate with Rxf8+. White is up to no good.} Nd7 {[%emt 0:13:18][%cal Oe5d6]} (18... Qxe2 19. Rxf8+ Kxf8 20. Qd8#) 19. Bc6 {[%emt 0:15:58]} Qd6 {[%emt 0:04:55]} (19... Qg5 $11 {keeps the balance.} 20. Rxf8+ (20. Rxd7 Bxd7 21. Bxd7 Qd5 $15) 20... Nxf8) 20. Bxd7 $1 $16 {[%emt 0:05:59]} Bxd7 {[%emt 0:00:23]} 21. Rxf8+ {[%emt 0:01:04]} Qxf8 {[%emt 0:00:13]} 22. Qxa6 {[%emt 0:04:33][%mdl 4096] Endgame KQR-KQB} c3 {[%emt 0:05:01]} 23. Rd1 $1 {[%emt 0:02:19][%mdl 1024] White has compensation.} Be8 {[%emt 0:03:53] [#] White now steadily converts the win.} 24. Rd3 $1 {[%emt 0:07:37] White is more active.} b4 {[%emt 0:00:53] aiming for ...g6.} 25. Rd8 {[%emt 0:00:19]} Qe7 {[%emt 0:06:42] [#]} 26. Rc8 {[%emt 0:00:12]} f6 {[%emt 0:01:56]} (26... h6 $16 {was called for.}) 27. Qc4 {[%emt 0:03:06]} Kf7 {[%emt 0:00:40]} (27... h6 $16 28. Rxc5 Qd7) 28. Rxc5 $18 {[%emt 0:00:12]} (28. Qxc5 Qxc5 29. Rxc5 Ba4 $11) 28... Bd7 {[%emt 0:00:27]} (28... Qd6 $142 29. Qxb4 Bc6) 29. Qxb4 {[%emt 0:06:38]} Qd6 {[%emt 0:00:31]} 30. Qxc3 {[%emt 0:01:00]} Qd1+ {[%emt 0:00:12]} 31. Kg2 {[%emt 0:00:01]} Qxe2 {[%emt 0:00:09]} 32. Qc2 {[%emt 0:00:14]} Qa6 {[%emt 0:00:34]} 33. Rc7 {[%emt 0:02:08]} ({Not} 33. Qxh7 Qa8+ 34. Kg1 Qxa2 35. Qh5+ Ke7 $18) 33... Qd6 {[%emt 0:00:46]} 34. Qc5 {[%emt 0:01:34]} Qd3 {[%emt 0:00:40]} 35. Qc4 {[%emt 0:00:24]} (35. Qc6 Ke8 36. Qa8+ Ke7 $18) 35... Qd6 {[%emt 0:00:24]} 36. a4 {[%emt 0:00:28][%cal Ba2a4,Ba4a5,Ba5a6][%mdl 32]} Ke8 {[%emt 0:00:18]} 37. a5 {[%emt 0:00:37]} Kd8 {[%emt 0:00:08]} 38. Rc5 {[%emt 0:00:07]} Qb8 {[%emt 0:00:39]} 39. h4 {[%emt 0:02:28]} Qa8+ {[%emt 0:00:34]} 40. Kg1 {[%emt 0:00:36] Threatens to win with Qd3.} Qb7 {[%emt 0:00:42]} 41. Qd3 {[%emt 0:07:55]} h6 {[%emt 0:01:24]} 42. a6 {[%emt 0:04:15]} Qb6 {[%emt 0:01:14]} 43. Rc1 {[%emt 0:00:33]} (43. Qa3 $142 Ke8 44. a7 Bc6 45. Rxc6 (45. a8=B Bd7 $18) 45... Qxc6 46. a8=Q+ (46. a8=B Qd7 $18) 46... Qxa8 47. Qxa8+ Kf7 48. Qb7+ (48. Qa4 f5 $18) 48... Kf8 49. h5 (49. Qa8+ Ke7 $18)) 43... Ke8 {[%emt 0:02:59]} 44. Rb1 {[%emt 0:00:13]} Qc5 {[%emt 0:02:20]} 45. Rb8+ {[%emt 0:00:44]} (45. Qg6+ $142 Kf8 46. Rb8+ Ke7 47. Qxg7+ Kd6 48. Rd8 (48. Qxh6 Qa5 $18) (48. Qxf6 Qc1+ 49. Kh2 Bc6 $18) 48... Qc1+ 49. Kh2 Qc7 50. Qxd7+ (50. Qxf6 Kd5 $18) 50... Qxd7 51. Rxd7+ Kxd7 52. a7) 45... Ke7 {[%emt 0:01:24]} 46. Rb7 {[%emt 0:00:12] Weighted Error Value: White=0.33/Black=0.67  Mistake:       	White=1     	Black=5      Inaccurate:     	White=1     	Black=4      OK:         	White=20    	Black=8      Best:        	White=7     	Black=3      Strong:       	White=4     	---} 1-0

[Event "FIDE WSTC Open 50 2025"]
[Site "Prague"]
[Date "2025.02.19"]
[Round "3.18"]
[White "Farrell, Neil"]
[Black "Mrva, Martin"]
[Result "0-1"]
[Annotator "RC"]
[ECO "E71"]
[WhiteElo "2116"]
[BlackElo "2394"]
[PlyCount "82"]
[EventDate "2025.02.17"]
[EventType "team-tourn"]
[EventCountry "CZE"]
[SourceTitle "playchess.com"]
[Source "ChessBase"]
[SourceQuality "1"]
[TimeControl "40/5400+30:1800+30"]

1. d4 {[%emt 0:00:04]} Nf6 {[%emt 0:00:09]} 2. c4 {[%emt 0:00:17]} g6 {[%emt 0:00:13]} 3. Nc3 {[%emt 0:00:11]} Bg7 {[%emt 0:00:07]} 4. e4 {[%emt 0:00:20]} d6 {[%emt 0:00:06]} 5. h3 {[%emt 0:01:14]} O-O {[%emt 0:00:11]} 6. Be3 {[%emt 0:00:35]} e5 {[%emt 0:01:31]} 7. d5 {[%emt 0:00:22]} Na6 {[%emt 0:00:30]} 8. g4 {[%emt 0:01:00]} Nc5 {[%emt 0:00:20]} 9. f3 {[%emt 0:00:21]} Nfd7 {[%emt 0:04:40]} 10. h4 {[%emt 0:05:31]} f5 {[%emt 0:10:29]} 11. g5 {[%emt 0:01:28]} a5 {[%emt 0:09:28]} 12. Qd2 {[%emt 0:04:57]} a4 {[%emt 0:03:30]} 13. O-O-O {[%emt 0:20:34]} c6 {[%emt 0:09:13]} 14. h5 {[%emt 0:12:05]} f4 {[%emt 0:07:31]} 15. Bxc5 {[%emt 0:08:04]} Nxc5 {[%emt 0:01:33]} 16. dxc6 {[%emt 0:03:42]} bxc6 {[%emt 0:09:58]} 17. h6 {[%emt 0:15:24]} Bh8 {[%emt 0:05:03]} 18. Bh3 {[%emt 0:01:15]} a3 {[%emt 0:08:01]} 19. b3 {[%emt 0:02:01]} Qa5 {[%emt 0:00:23]} 20. Nge2 {[%emt 0:01:06]} Bxh3 {[%emt 0:01:42]} 21. Rxh3 {[%emt 0:00:06]} Rfd8 {[%emt 0:00:09]} 22. Rhh1 {[%emt 0:01:31]} Qb4 {[%emt 0:07:56]} 23. Qc2 {[%emt 0:06:35]} Ne6 {[%emt 0:02:25]} 24. Rd3 {[%emt 0:01:32]} Nxg5 {[%emt 0:00:55]} 25. Kb1 {[%emt 0:04:35]} Ne6 {[%emt 0:00:41]} 26. Qd2 {[%emt 0:02:46]} Rab8 {[%emt 0:03:48]} 27. Rd1 {[%emt 0:00:59]} Qxc4 {[%emt 0:05:26]} 28. Rxd6 {[%emt 0:00:40]} Rxb3+ {[%emt 0:01:13]} 29. Ka1 {[%emt 0:01:40]} Rxd6 {[%emt 0:01:35]} 30. Qxd6 {[%emt 0:00:03]} Rxc3 {[%emt 0:00:11]} 31. Qb8+ {[%emt 0:01:03]} Nf8 {[%emt 0:00:06]} 32. Nxc3 {[%emt 0:00:14]} Qxc3+ {[%emt 0:00:05]} 33. Kb1 {[%emt 0:00:04]} Bf6 {[%emt 0:02:39]} 34. Qb7 {[%emt 0:01:49]} Qxf3 {[%emt 0:00:32]} 35. Rd6 {[%emt 0:02:52]} Qxe4+ {[%emt 0:01:31]} 36. Kc1 {[%emt 0:00:11]} Qe1+ {[%emt 0:00:20]} 37. Kc2 {[%emt 0:00:08]} Qe2+ {[%emt 0:02:07]} 38. Kb1 {[%emt 0:01:04]} Be7 {[%emt 0:01:25]} 39. Qb3+ {[%emt 0:00:31]} Kh8 {[%emt 0:00:08]} 40. Rxc6 {[%emt 0:00:49]} Qe4+ {[%emt 0:01:13]} 41. Rc2 {[%emt 0:30:38]} f3 {[%emt 0:30:59]} 0-1

[Event "FIDE WSTC Open 50 2025"]
[Site "Prague"]
[Date "2025.02.19"]
[Round "3.19"]
[White "Stohl, Igor"]
[Black "Neave, George"]
[Result "1-0"]
[Annotator "RC"]
[ECO "E73"]
[WhiteElo "2409"]
[BlackElo "2074"]
[PlyCount "55"]
[EventDate "2025.02.17"]
[EventType "team-tourn"]
[EventCountry "CZE"]
[SourceTitle "playchess.com"]
[Source "ChessBase"]
[SourceQuality "1"]
[TimeControl "40/5400+30:1800+30"]

1. d4 {[%emt 0:00:28]} Nf6 {[%emt 0:00:08]} 2. c4 {[%emt 0:00:16]} g6 {[%emt 0:00:13]} 3. Nc3 {[%emt 0:00:32]} Bg7 {[%emt 0:00:07]} 4. e4 {[%emt 0:00:13]} d6 {[%emt 0:00:05]} 5. Be2 {[%emt 0:00:18]} O-O {[%emt 0:00:33]} 6. Be3 {[%emt 0:00:10]} e5 {[%emt 0:00:26]} 7. d5 {[%emt 0:00:07]} Na6 {[%emt 0:00:14]} 8. h4 {[%emt 0:00:24]} Nc5 {[%emt 0:00:58]} 9. Qc2 {[%emt 0:00:33]} c6 {[%emt 0:03:30]} 10. h5 {[%emt 0:02:34]} Bd7 {[%emt 0:09:21]} 11. h6 {[%emt 0:08:00]} Bh8 {[%emt 0:00:06]} 12. b4 {[%emt 0:01:27]} Na6 {[%emt 0:19:31]} 13. a3 {[%emt 0:11:22]} cxd5 {[%emt 0:05:56]} 14. cxd5 {[%emt 0:03:39]} Ne8 {[%emt 0:07:18]} 15. g4 {[%emt 0:09:22]} f5 {[%emt 0:07:01]} 16. gxf5 {[%emt 0:04:25]} gxf5 {[%emt 0:00:07]} 17. Nf3 {[%emt 0:06:49]} Bf6 {[%emt 0:09:08]} 18. exf5 {[%emt 0:02:43]} e4 {[%emt 0:01:17]} 19. Nd4 {[%emt 0:01:19]} Rc8 {[%emt 0:01:23]} 20. Qd2 {[%emt 0:07:13]} Bxf5 {[%emt 0:00:51]} 21. Rc1 {[%emt 0:01:29]} Bd7 {[%emt 0:06:55]} 22. Nxe4 {[%emt 0:03:57]} Rxc1+ {[%emt 0:04:25]} 23. Qxc1 {[%emt 0:00:07]} Be7 {[%emt 0:01:13]} 24. Rg1+ {[%emt 0:06:02]} Kh8 {[%emt 0:00:30]} 25. Ne6 {[%emt 0:01:07]} Bxe6 {[%emt 0:00:33]} 26. Bd4+ {[%emt 0:02:52]} Nf6 {[%emt 0:02:54]} 27. dxe6 {[%emt 0:01:45]} Nc7 {[%emt 0:00:54]} 28. Ng5 {[%emt 0:01:06]} 1-0

[Event "FIDE WSTC Open 50 2025"]
[Site "Prague"]
[Date "2025.02.19"]
[Round "3.20"]
[White "Robertson, Ian C."]
[Black "Motuz, Karol"]
[Result "1/2-1/2"]
[Annotator "RC"]
[ECO "A46"]
[WhiteElo "2064"]
[BlackElo "2293"]
[PlyCount "43"]
[EventDate "2025.02.17"]
[EventType "team-tourn"]
[EventCountry "CZE"]
[SourceTitle "playchess.com"]
[Source "ChessBase"]
[SourceQuality "1"]
[TimeControl "40/5400+30:1800+30"]

1. d4 {[%emt 0:00:05]} Nf6 {[%emt 0:01:31]} 2. Nf3 {[%emt 0:00:47]} e6 {[%emt 0:00:51]} 3. e3 {[%emt 0:02:43]} Be7 {[%emt 0:01:34]} 4. Bd3 {[%emt 0:01:51]} b6 {[%emt 0:01:56]} 5. c4 {[%emt 0:03:55]} Bb7 {[%emt 0:01:12]} 6. Nc3 {[%emt 0:00:36]} c5 {[%emt 0:01:44]} 7. O-O {[%emt 0:01:35]} cxd4 {[%emt 0:03:34]} 8. exd4 {[%emt 0:02:14]} O-O {[%emt 0:02:42]} 9. d5 {[%emt 0:06:31]} h6 {[%emt 0:07:08]} 10. Bf4 {[%emt 0:15:35]} exd5 {[%emt 0:08:52]} 11. Nxd5 {[%emt 0:04:41]} Nxd5 {[%emt 0:02:48]} 12. cxd5 {[%emt 0:00:10]} d6 {[%emt 0:05:11]} 13. Re1 {[%emt 0:09:49]} Nd7 {[%emt 0:02:25]} 14. Bb5 {[%emt 0:17:12]} Ne5 {[%emt 0:09:44]} 15. Nxe5 {[%emt 0:13:28]} dxe5 {[%emt 0:00:11]} 16. Bxe5 {[%emt 0:00:43]} Bxd5 {[%emt 0:06:00]} 17. Qg4 {[%emt 0:02:50]} Bf6 {[%emt 0:09:53]} 18. Rad1 {[%emt 0:01:58]} Be6 {[%emt 0:03:14]} 19. Qa4 {[%emt 0:05:59]} Qc8 {[%emt 0:06:44]} 20. Bxf6 {[%emt 0:01:04]} gxf6 {[%emt 0:00:01]} 21. Qf4 {[%emt 0:01:15]} Qc5 {[%emt 0:02:07]} 22. Bd3 {[%emt 0:02:34]} 1/2-1/2